bitfinex-derivatives/quotes_BTCF0:USTF0_20250728
["timestamp","ask_amount","ask_price","bid_price","bid_amount"]
[1753723808772,0.96231174,118140.0,118130.0,1.05868]
[1753723808972,0.5287284,118140.0,118130.0,1.05868]
[1753723810975,0.96231174,118140.0,118130.0,1.00913]
[1753723812473,0.2468574,118120.0,118110.0,0.7463489]
[1753723812675,0.95934074,118120.0,118110.0,1.27171]
[1753723813078,0.97330505,118120.0,118110.0,1.4410417]
[1753723813477,0.97330505,118120.0,118110.0,0.57703]
[1753723813677,0.97330505,118120.0,118110.0,1.27167]
[1753723813878,0.97330505,118120.0,118110.0,0.7463617]
[1753723814080,0.97330505,118120.0,118110.0,1.27263]
[1753723814770,0.97330505,118120.0,118110.0,1.27363]
[1753723815079,0.53972171,118120.0,118110.0,1.27363]
[1753723815275,0.53972171,118120.0,118110.0,1.32318]
[1753723815781,0.53972171,118120.0,118110.0,1.92609504]
[1753723815970,0.01396431,118120.0,118110.0,1.92609504]
[1753723816176,0.01396431,118120.0,118110.0,1.94851072]
[1753723816780,0.18328171,118120.0,118110.0,1.94851072]
[1753723816980,0.18328171,118120.0,118110.0,1.68561072]
[1753723817180,0.01396431,118120.0,118110.0,1.66319504]
[1753723817376,0.18328171,118120.0,118110.0,1.68560601]
[1753723817577,0.01396431,118120.0,118110.0,1.68560601]
[1753723818379,0.1731142,118140.0,118110.0,1.68560601]
[1753723818380,0.3424147,118140.0,118120.0,0.14577]
[1753723818585,0.3000895,118140.0,118130.0,1.65221634]
[1753723818876,0.3000895,118140.0,118130.0,1.74908084]
[1753723818877,0.2577648,118140.0,118130.0,1.74908084]
[1753723819079,0.2154287,118140.0,118130.0,1.726674]
[1753723819275,0.36143689,118150.0,118130.0,1.8113239]
[1753723819479,0.31911579,118150.0,118140.0,0.863011]
[1753723819680,0.35051579,118150.0,118140.0,0.863011]
[1753723820275,0.44741579,118150.0,118140.0,0.863011]
[1753723820483,0.44741579,118150.0,118140.0,0.35497]
[1753723820980,0.51436579,118150.0,118140.0,0.35497]
[1753723821478,0.51636579,118150.0,118140.0,0.35497]
[1753723821778,0.35251579,118150.0,118140.0,0.35497]
[1753723821981,0.19033519,118150.0,118140.0,1.0322997]
[1753723822183,0.23612519,118150.0,118140.0,1.0322997]
[1753723822378,0.23612519,118150.0,118140.0,1.07474905]
[1753723822583,0.02104859,118150.0,118140.0,1.07474905]
[1753723822786,0.002,118150.0,118140.0,1.07474905]
[1753723822980,0.0881023,118170.0,118150.0,0.042317]
[1753723823181,0.2573589,118170.0,118160.0,1.736451]
[1753723823482,0.2150466,118170.0,118160.0,1.736451]
[1753723823681,0.14551448,118180.0,118160.0,1.736451]
[1753723823880,0.23361938,118180.0,118170.0,1.0423566]
[1753723824079,0.18782938,118180.0,118170.0,1.0423566]
[1753723824586,0.54716938,118180.0,118170.0,0.36507]
[1753723824986,0.54716938,118180.0,118170.0,1.01823]
[1753723825287,0.54716938,118180.0,118170.0,1.05907]
[1753723825883,0.55116938,118180.0,118170.0,1.05907]
[1753723826188,0.55116938,118180.0,118170.0,1.01807]
[1753723826373,0.33742938,118180.0,118170.0,1.566951]
[1753723826574,0.23761938,118180.0,118170.0,1.63589308]
[1753723827086,0.23861938,118180.0,118170.0,1.80513878]
[1753723827286,0.02358598,118180.0,118170.0,1.80513878]
[1753723827482,0.19281738,118180.0,118170.0,1.80513878]
[1753723827687,0.23860738,118180.0,118170.0,1.63589308]
[1753723827889,0.23860738,118180.0,118170.0,1.80513878]
[1753723828883,0.23860738,118180.0,118170.0,1.63589308]
[1753723829283,0.55215738,118180.0,118170.0,0.39317208]
[1753723829481,0.55215738,118180.0,118170.0,0.06894208]
[1753723829482,1.06019838,118180.0,118170.0,0.06894208]
[1753723829681,1.06019838,118180.0,118170.0,0.69364]
[1753723830090,0.55215738,118180.0,118170.0,0.69364]
[1753723830289,0.54815738,118180.0,118170.0,0.80986]
[1753723830488,0.56306745,118180.0,118170.0,1.05505197]
[1753723831093,1.07110845,118180.0,118170.0,0.76280197]
[1753723831288,1.24034845,118180.0,118170.0,0.06916197]
[1753723831482,1.24034845,118180.0,118170.0,0.69356]
[1753723832583,0.4301201,118160.0,118150.0,1.17072]
[1753723832786,1.0366411,118160.0,118150.0,1.8642]
[1753723833296,1.05056024,118160.0,118150.0,1.8642]
[1753723833492,1.05092619,118160.0,118150.0,1.8642]
[1753723833692,1.05092619,118160.0,118150.0,1.8662]
[1753723834297,1.05092619,118160.0,118150.0,1.93336551]
[1753723837597,1.05092619,118160.0,118150.0,0.06916551]
[1753723837797,1.05092619,118160.0,118150.0,0.69536]
[1753723837997,1.05092619,118160.0,118150.0,0.76363658]
[1753723838397,1.05192619,118160.0,118150.0,0.76163658]
[1753723838603,0.54388519,118160.0,118150.0,0.98027658]
[1753723838896,0.54388519,118160.0,118150.0,1.05388658]
[1753723839594,0.26194519,118160.0,118150.0,1.60276758]
[1753723840797,1.05192619,118160.0,118150.0,0.03159398]
[1753723840987,0.3817587,118140.0,118130.0,0.11622]
[1753723841192,1.05095479,118140.0,118130.0,0.8095]
[1753723841395,0.54291379,118140.0,118130.0,0.8095]
[1753723841600,1.05095479,118140.0,118130.0,0.91192]
[1753723841899,1.05095479,118140.0,118130.0,0.98549]
[1753723842394,0.54291379,118140.0,118130.0,0.98549]
[1753723842595,0.54291379,118140.0,118130.0,1.02871705]
[1753723842996,0.528643,118130.0,118120.0,1.36390318]
[1753723843199,1.05096909,118130.0,118120.0,2.05714318]
[1753723843599,1.04896909,118130.0,118120.0,2.05714318]
[1753723844298,1.18956909,118130.0,118120.0,2.06014318]
[1753723844493,0.54092809,118130.0,118120.0,2.06014318]
[1753723844695,0.54092809,118130.0,118120.0,2.05714318]
[1753723844898,0.54092809,118130.0,118120.0,2.12545008]
[1753723845500,0.54092809,118130.0,118120.0,2.1668627]
[1753723846905,1.04896909,118130.0,118120.0,2.1668627]
[1753723847300,1.04896909,118130.0,118120.0,2.0932527]
[1753723847500,1.04896909,118130.0,118120.0,2.1668627]
[1753723847701,1.04896909,118130.0,118120.0,2.14950952]
[1753723848507,1.04896909,118130.0,118120.0,2.15150952]
[1753723849003,1.05196909,118130.0,118120.0,2.15150952]
[1753723849712,1.05198672,118130.0,118120.0,2.15150952]
[1753723851006,1.05298672,118130.0,118120.0,2.14950952]
[1753723854212,1.05298672,118130.0,118120.0,2.19034952]
[1753723854407,1.19358672,118130.0,118120.0,2.19034952]
[1753723854713,1.05298672,118130.0,118120.0,2.19034952]
[1753723854902,0.54494572,118130.0,118120.0,2.19034952]
[1753723857012,0.18560572,118130.0,118120.0,2.19034952]
[1753723857209,0.18560572,118130.0,118120.0,2.69839052]
[1753723857607,0.18560572,118130.0,118120.0,2.88976273]
[1753723858210,0.18560572,118130.0,118120.0,2.72044543]
[1753723858412,0.18260572,118130.0,118120.0,2.88976273]
[1753723859104,0.18260572,118130.0,118120.0,2.72044543]
[1753723861219,0.2962636,118140.0,118130.0,0.31359]
[1753723861424,0.2962636,118140.0,118130.0,0.821631]
[1753723862020,0.2539384,118140.0,118130.0,1.01306542]
[1753723862416,0.1032553,118150.0,118140.0,0.2779887]
[1753723862619,0.2725296,118150.0,118140.0,1.4787097]
[1753723862815,0.2725296,118150.0,118140.0,1.50084647]
[1753723864226,0.2725296,118150.0,118140.0,1.50084657]
[1753723864819,0.2725296,118150.0,118140.0,1.50184657]
[1753723865517,0.2725296,118150.0,118140.0,1.50384657]
[1753723866822,0.2725296,118150.0,118140.0,1.33455777]
[1753723867024,0.3190196,118150.0,118140.0,1.33455777]
[1753723867229,0.3190196,118150.0,118140.0,1.50384657]
[1753723868231,0.2539147,118150.0,118140.0,1.50384657]
[1753723868423,0.1692743,118150.0,118140.0,1.50384657]
[1753723869028,0.2157643,118150.0,118140.0,1.50384657]
[1753723869231,0.2157643,118150.0,118140.0,1.50386332]
[1753723869434,0.2157643,118150.0,118140.0,1.4817098]
[1753723869637,0.2157643,118150.0,118140.0,1.50386334]
[1753723869931,0.2157643,118150.0,118140.0,1.4817098]
[1753723870327,0.2157643,118150.0,118140.0,0.9736688]
[1753723870528,0.2157643,118150.0,118140.0,1.50386376]
[1753723871030,0.3657043,118150.0,118140.0,0.80406]
[1753723871232,0.5304743,118150.0,118140.0,0.9733488]
[1753723871428,0.2969343,118150.0,118140.0,0.9733488]
[1753723871734,0.2157643,118150.0,118140.0,0.9733488]
[1753723872122,0.2157643,118150.0,118140.0,0.80406]
[1753723872328,0.2157643,118150.0,118140.0,0.9733488]
[1753723872835,0.2157643,118150.0,118140.0,0.80406]
[1753723873033,0.2157643,118150.0,118140.0,0.9733488]
[1753723873337,0.23001631,118150.0,118140.0,1.4813898]
[1753723874331,0.23001631,118150.0,118140.0,0.80406]
[1753723874527,0.23001631,118150.0,118140.0,0.88679658]
[1753723874732,0.47595631,118150.0,118140.0,0.99549658]
[1753723874929,0.23001631,118150.0,118140.0,0.30313658]
[1753723875136,0.23001631,118150.0,118140.0,0.99533658]
[1753723876038,0.23001631,118150.0,118140.0,0.82604788]
[1753723876236,0.23001631,118150.0,118140.0,0.99533668]
[1753723876933,0.23001631,118150.0,118140.0,1.50337768]
[1753723877936,0.23001631,118150.0,118140.0,1.33408888]
[1753723878242,0.54472631,118150.0,118140.0,1.33404888]
[1753723878438,0.54472631,118150.0,118140.0,0.82600788]
[1753723878634,0.54472631,118150.0,118140.0,1.99529658]
[1753723878835,0.54472631,118150.0,118140.0,1.9731487]
[1753723879841,0.54472631,118150.0,118140.0,2.4811897]
[1753723880043,0.54472631,118150.0,118140.0,2.311901]
[1753723880244,0.54472631,118150.0,118140.0,2.4811897]
[1753723880544,0.54472631,118150.0,118140.0,2.311901]
[1753723880735,0.54472631,118150.0,118140.0,2.23738493]
[1753723881431,0.37995631,118150.0,118140.0,1.1117]
[1753723881637,0.99735677,118150.0,118140.0,1.69504]
[1753723881942,0.99735677,118150.0,118140.0,1.73844]
[1753723882841,0.99735677,118150.0,118140.0,1.69404]
[1753723883242,1.16663677,118150.0,118140.0,1.69404]
[1753723883445,1.22710349,118150.0,118140.0,1.69404]
[1753723883947,1.16663677,118150.0,118140.0,1.69404]
[1753723884839,1.16763677,118150.0,118140.0,1.69204]
[1753723885346,1.16663677,118150.0,118140.0,1.69204]
[1753723885542,1.16863677,118150.0,118140.0,1.69204]
[1753723885742,0.99935677,118150.0,118140.0,1.69204]
[1753723886045,1.00035677,118150.0,118140.0,1.69204]
[1753723886346,1.06082349,118150.0,118140.0,1.69204]
[1753723886645,1.00035677,118150.0,118140.0,1.69204]
[1753723887146,1.00035677,118150.0,118140.0,1.0]
[1753723887345,1.23010349,118150.0,118140.0,1.69192]
[1753723887642,1.23010349,118150.0,118120.0,1.32612952]
[1753723887643,0.54933851,118130.0,118120.0,1.32612952]
[1753723887842,0.99711545,118130.0,118120.0,2.01804952]
[1753723888640,0.99711545,118130.0,118120.0,2.04123461]
[1753723890040,0.99711545,118130.0,118120.0,2.01904952]
[1753723890443,0.99711545,118130.0,118120.0,2.04114202]
[1753723890643,0.24832052,118130.0,118120.0,2.64398435]
[1753723890944,0.24832052,118130.0,118120.0,2.47366695]
[1753723891248,0.24932052,118130.0,118120.0,2.47366695]
[1753723891446,0.24932052,118130.0,118120.0,2.04014202]
[1753723891643,0.34622052,118130.0,118120.0,2.04014202]
[1753723892151,0.34622052,118130.0,118120.0,2.47366695]
[1753723892550,0.24932052,118130.0,118120.0,2.47366695]
[1753723892739,0.24932052,118130.0,118120.0,2.04014202]
[1753723894048,0.34622052,118130.0,118120.0,2.04014202]
[1753723895244,0.24932052,118130.0,118120.0,2.04014202]
[1753723897242,0.24932052,118130.0,118120.0,1.34822202]
[1753723897444,1.07276629,118130.0,118120.0,2.03998202]
[1753723897743,1.07276629,118130.0,118120.0,1.97199952]
[1753723898245,1.07276629,118130.0,118120.0,0.80147952]
[1753723898655,1.07276629,118130.0,118120.0,0.7600669]
[1753723900654,1.07276629,118130.0,118120.0,0.8059569]
[1753723901852,1.07276629,118130.0,118120.0,0.84186908]
[1753723902650,1.07276629,118130.0,118120.0,0.79597908]
[1753723903654,1.07276629,118130.0,118120.0,0.84186908]
[1753723907359,1.03094139,118130.0,118120.0,0.84186908]
[1753723908360,1.03094139,118130.0,118120.0,0.79443198]
[1753723908564,1.03094139,118130.0,118120.0,0.76948928]
[1753723908862,1.03094139,118130.0,118120.0,0.72359928]
[1753723909160,1.20025339,118130.0,118120.0,0.63353532]
[1753723909361,1.20025339,118130.0,118120.0,0.10349553]
[1753723909551,0.1693175,118120.0,118110.0,0.73745]
[1753723909755,1.05314528,118120.0,118110.0,0.70682973]
[1753723910356,1.05314528,118120.0,118110.0,0.75271973]
[1753723910762,1.05314528,118120.0,118110.0,0.75371973]
[1753723911966,1.05414528,118120.0,118110.0,0.75271973]
[1753723912860,1.41384045,118120.0,118110.0,0.75271973]
[1753723913663,0.5348505,118090.0,118080.0,6e-08]
[1753723913966,0.5348505,118090.0,118060.0,0.00221]
[1753723913967,0.55371634,118070.0,118060.0,0.00221]
[1753723914165,1.00190382,118070.0,118060.0,0.73603942]
[1753723914369,1.00190382,118070.0,118060.0,0.71576772]
[1753723914761,0.99990382,118070.0,118060.0,0.71576772]
[1753723914964,0.99990382,118070.0,118060.0,0.09292124]
[1753723915159,0.98565181,118070.0,118060.0,0.04723292]
[1753723915362,0.1694179,118050.0,118040.0,1.17088]
[1753723915565,0.1694179,118050.0,118040.0,1.8839423]
[1753723915763,0.23125832,118050.0,118040.0,1.86232]
[1753723917064,0.1694179,118050.0,118040.0,1.17188]
[1753723917264,0.24978252,118050.0,118040.0,1.86336]
[1753723917670,0.23505175,118050.0,118040.0,1.86336]
[1753723917870,0.23505175,118050.0,118040.0,1.90544675]
[1753723919168,1.06235692,118050.0,118040.0,5e-08]
[1753723919372,0.07929,118030.0,118010.0,1.43406]
[1753723919573,0.93182527,118030.0,118020.0,0.69152]
[1753723919871,0.4652848,118030.0,118020.0,0.69152]
[1753723920072,0.3859948,118030.0,118020.0,0.69152]
[1753723920269,0.3426301,118030.0,118020.0,0.69152]
[1753723920572,0.3426301,118030.0,118020.0,1.21769608]
[1753723920573,0.2955401,118030.0,118020.0,1.21769608]
[1753723920771,0.2955401,118030.0,118020.0,1.38715718]
[1753723921172,0.2965401,118030.0,118020.0,1.38715718]
[1753723921474,0.2541754,118030.0,118020.0,1.38715718]
[1753723921675,0.2541754,118030.0,118020.0,1.21769608]
[1753723921978,0.2541754,118030.0,118020.0,1.38715708]
[1753723922172,0.2541754,118030.0,118020.0,1.21769608]
[1753723922474,0.3022654,118030.0,118020.0,0.70879091]
[1753723922775,1.12857057,118030.0,118020.0,0.70879091]
[1753723924173,1.12857057,118030.0,118020.0,0.01727091]
[1753723924368,1.12857057,118030.0,118020.0,0.70879091]
[1753723924966,0.6196654,118030.0,118020.0,0.70879091]
[1753723927073,0.6196654,118030.0,118020.0,0.70900091]
[1753723927976,0.6196654,118030.0,118020.0,0.87846201]
[1753723928476,0.6196654,118030.0,118020.0,0.70900091]
[1753723930280,0.6196654,118030.0,118020.0,0.87846191]
[1753723930476,0.1704468,118030.0,118020.0,0.87846191]
[1753723930681,0.1704468,118030.0,118020.0,1.38736708]
[1753723931081,0.2175368,118030.0,118020.0,1.38736708]
[1753723933882,0.001,118030.0,118020.0,1.55682308]
[1753723934386,0.001,118030.0,118020.0,1.5782833]
[1753723935084,0.2165238,118040.0,118030.0,0.1694467]
[1753723935283,0.2165238,118040.0,118030.0,0.67856187]
[1753723937190,0.2165238,118040.0,118030.0,0.50911517]
[1753723937394,0.2165238,118040.0,118030.0,0.1696567]
[1753723939288,0.2165238,118040.0,118030.0,0.67856187]
[1753723939784,0.3163738,118040.0,118030.0,0.67856187]
[1753723940086,0.5349238,118040.0,118030.0,0.69145]
[1753723942083,0.54975966,118040.0,118030.0,0.71300876]
[1753723942292,0.54975966,118040.0,118030.0,0.88245546]
[1753723942591,0.5349238,118040.0,118030.0,0.88245546]
[1753723943193,0.54978165,118040.0,118030.0,0.88245546]
[1753723945094,0.54978165,118040.0,118030.0,0.71300876]
[1753723945790,0.54978165,118040.0,118030.0,0.71284876]
[1753723946092,0.54978165,118040.0,118030.0,0.88229536]
[1753723949491,0.54978165,118040.0,118030.0,1.31660818]
[1753723949794,0.54978165,118040.0,118030.0,0.71284876]
[1753723950689,0.98409447,118040.0,118030.0,0.71251876]
[1753723950895,0.98409447,118040.0,118030.0,0.02155876]
[1753723951096,0.98409447,118040.0,118030.0,0.71251876]
[1753723956791,0.98409447,118040.0,118030.0,0.02155876]
[1753723956997,0.98409447,118040.0,118030.0,0.71239876]
[1753723957600,0.98409447,118040.0,118030.0,0.02155876]
[1753723958189,0.98409447,118040.0,118030.0,0.71235876]
[1753723958394,0.98409447,118040.0,118030.0,0.02155876]
[1753723958601,0.98509447,118040.0,118030.0,0.71235876]
[1753723959892,1.41940729,118040.0,118030.0,0.71231876]
[1753723960298,0.98509447,118040.0,118030.0,0.71231876]
[1753723963109,0.55078165,118040.0,118030.0,0.88176536]
[1753723963405,0.54735165,118040.0,118030.0,1.14663158]
[1753723963807,0.54735165,118040.0,118030.0,1.31607818]
[1753723964501,0.54635165,118040.0,118030.0,1.31607818]
[1753723965105,0.54635165,118040.0,118030.0,1.14663158]
[1753723965507,0.54635165,118040.0,118030.0,1.31607808]
[1753723966807,0.54635165,118040.0,118030.0,1.14663158]
[1753723967011,0.54635165,118040.0,118030.0,1.31607818]
[1753723967306,0.54635165,118040.0,118030.0,1.14663158]
[1753723968009,0.54635165,118040.0,118030.0,0.71231876]
[1753723969309,0.98066447,118040.0,118030.0,1.88367876]
[1753723970213,0.54635165,118040.0,118030.0,1.88367876]
[1753723971301,0.54635165,118040.0,118030.0,2.31799158]
[1753723973606,0.54635165,118040.0,118030.0,1.88367876]
[1753723973806,0.54635165,118040.0,118030.0,1.90655057]
[1753723975918,0.54635165,118040.0,118030.0,2.07599707]
[1753723976714,0.54635165,118040.0,118030.0,1.38543707]
[1753723976911,0.54635165,118040.0,118030.0,2.07575707]
[1753723977216,0.54635165,118040.0,118030.0,1.90631057]
[1753723977420,0.54635165,118040.0,118030.0,2.34062339]
[1753723977715,0.54635165,118040.0,118030.0,2.48719818]
[1753723978720,0.54635165,118040.0,118030.0,2.51007287]
[1753723979117,0.54635165,118040.0,118030.0,2.51007277]
[1753723980312,0.132246,118050.0,118030.0,1.79687808]
[1753723980512,0.30656983,118080.0,118070.0,0.07965]
[1753723980819,0.4005517,118080.0,118070.0,1.38456282]
[1753723981314,0.3158591,118080.0,118070.0,1.55395192]
[1753723981519,0.1693891,118080.0,118070.0,1.55395192]
[1753723981714,0.1723891,118080.0,118070.0,1.55395192]
[1753723982421,0.2249191,118080.0,118070.0,1.55395192]
[1753723982719,0.3233891,118080.0,118070.0,1.55391192]
[1753723982915,0.2249191,118080.0,118070.0,1.55391192]
[1753723983118,0.008,118080.0,118070.0,1.55391192]
[1753723983321,0.008,118080.0,118070.0,1.62023073]
[1753723984320,0.1773748,118080.0,118070.0,0.93007073]
[1753723984525,0.2249048,118080.0,118070.0,1.62019083]
[1753723985021,0.2169048,118080.0,118070.0,1.62019083]
[1753723985321,0.2169048,118080.0,118070.0,1.62011083]
[1753723985712,0.2169048,118080.0,118070.0,1.44865801]
[1753723985920,0.2169048,118080.0,118070.0,1.88297083]
[1753723986318,0.2169048,118080.0,118070.0,1.19297083]
[1753723986524,0.2169048,118080.0,118070.0,2.85897083]
[1753723986724,0.2169048,118080.0,118070.0,2.16897083]
[1753723986919,0.2169048,118080.0,118070.0,2.88190161]
[1753723987216,0.96428762,118080.0,118070.0,1.32814959]
[1753723987720,0.96428762,118080.0,118070.0,2.01810959]
[1753723987925,0.96428762,118080.0,118070.0,2.01910959]
[1753723988717,1.39860044,118080.0,118070.0,2.01910959]
[1753723988918,1.03883273,118080.0,118070.0,2.01902959]
[1753723989521,1.03983273,118080.0,118070.0,2.01802959]
[1753723989721,1.03983273,118080.0,118070.0,1.32814959]
[1753723989920,1.03983273,118080.0,118070.0,2.01702959]
[1753723990121,1.03883273,118080.0,118070.0,2.01702959]
[1753723990316,1.04183273,118080.0,118070.0,1.99509881]
[1753723991730,1.04183273,118080.0,118070.0,1.73219881]
[1753723992445,1.05632457,118080.0,118070.0,1.73219881]
[1753723993830,1.04183273,118080.0,118070.0,1.73219881]
[1753723994034,1.05732467,118080.0,118070.0,1.73219881]
[1753723994929,1.05732467,118080.0,118070.0,1.76575881]
[1753723996822,1.05732467,118080.0,118070.0,1.81321881]
[1753723997922,0.54846674,118080.0,118070.0,1.86031881]
[1753723998124,0.48033674,118080.0,118070.0,1.86031881]
[1753723999329,0.54846674,118080.0,118070.0,1.86031881]
[1753724000318,0.48033674,118080.0,118070.0,1.86031881]
[1753724001117,0.54846674,118080.0,118070.0,1.86031881]
[1753724001927,0.18786674,118080.0,118070.0,1.86031881]
[1753724002127,0.23362674,118080.0,118070.0,1.86031881]
[1753724002928,0.33608674,118080.0,118070.0,1.86031881]
[1753724004233,0.23362674,118080.0,118070.0,1.88223004]
[1753724005130,0.18786674,118080.0,118070.0,1.88223004]
[1753724005330,0.18786674,118080.0,118070.0,1.88223735]
[1753724006332,0.23062674,118080.0,118070.0,1.88223735]
[1753724013923,0.66469488,118080.0,118070.0,1.88163735]
[1753724014125,0.98444488,118080.0,118070.0,1.09920735]
[1753724014326,1.41851302,118080.0,118070.0,1.75347735]
[1753724014728,1.41851302,118080.0,118070.0,1.78759735]
[1753724014943,1.41851302,118080.0,118070.0,1.83505735]
[1753724015127,0.98444488,118080.0,118070.0,1.83505735]
[1753724016234,1.41851302,118080.0,118070.0,1.83505735]
[1753724016423,1.41851302,118080.0,118070.0,1.75347735]
[1753724016624,1.83789702,118080.0,118070.0,0.84092891]
[1753724016829,1.83789702,118080.0,118070.0,0.70500371]
[1753724017134,1.58789702,118080.0,118070.0,1.31786701]
[1753724017526,1.58789702,118080.0,118070.0,1.27463711]
[1753724017732,1.58789702,118080.0,118070.0,1.17701751]
[1753724017933,1.58789702,118080.0,118070.0,1.11597211]
[1753724018134,1.64834804,118080.0,118070.0,0.42681211]
[1753724018334,1.64834804,118080.0,118070.0,1.08367281]
[1753724018736,1.58789702,118080.0,118070.0,1.08367281]
[1753724019035,1.58789702,118080.0,118070.0,1.08363281]
[1753724020133,1.72849702,118080.0,118070.0,0.39451281]
[1753724020334,1.72849702,118080.0,118070.0,1.08363281]
[1753724020529,1.72849702,118080.0,118070.0,0.39451281]
[1753724020726,1.72849702,118080.0,118070.0,1.08363281]
[1753724021136,1.78905605,118080.0,118070.0,1.08363281]
[1753724022137,1.78905605,118080.0,118070.0,1.11775281]
[1753724022334,1.78905605,118080.0,118070.0,1.07114971]
[1753724022635,1.78905605,118080.0,118070.0,0.92590931]
[1753724022834,1.78905605,118080.0,118070.0,0.82010781]
[1753724023032,1.78905605,118080.0,118070.0,0.71286291]
[1753724023238,1.78905605,118080.0,118070.0,0.55791981]
[1753724023439,1.78905605,118080.0,118070.0,0.42916431]
[1753724023641,1.78905605,118080.0,118070.0,0.21219061]
[1753724023845,1.78905605,118080.0,118070.0,0.14986811]
[1753724024035,1.78905605,118080.0,118070.0,0.09729161]
[1753724024241,1.78905605,118080.0,118070.0,1e-08]
[1753724024743,0.3123289,118070.0,118060.0,0.90421]
[1753724025042,0.98345898,118070.0,118060.0,0.94982]
[1753724028045,0.98445898,118070.0,118060.0,0.94982]
[1753724029041,0.98445898,118070.0,118060.0,0.90421]
[1753724029837,0.98445898,118070.0,118060.0,0.06512]
[1753724030044,0.98445898,118070.0,118060.0,0.71996]
[1753724031743,0.98445898,118070.0,118060.0,0.75408]
[1753724032738,0.98445898,118070.0,118060.0,0.79058]
[1753724032944,0.98445898,118070.0,118060.0,0.88332]
[1753724034542,0.98445898,118070.0,118060.0,0.86051]
[1753724034739,0.4761318,118040.0,118030.0,1.22291]
[1753724035044,1.45083565,118040.0,118030.0,0.89976453]
[1753724035244,1.45083565,118040.0,118030.0,0.90071]
[1753724035545,1.01676751,118040.0,118030.0,0.92214]
[1753724035736,1.01676751,118040.0,118030.0,0.90071]
[1753724035737,0.83178135,118040.0,118030.0,0.90071]
[1753724035943,0.94391135,118040.0,118030.0,0.92214]
[1753724036142,1.01783135,118040.0,118030.0,0.92214]
[1753724036647,1.01683135,118040.0,118030.0,0.92214]
[1753724036845,1.01983135,118040.0,118030.0,0.92214]
[1753724037150,1.01683135,118040.0,118030.0,0.92214]
[1753724037345,0.1694462,118030.0,118020.0,0.01727091]
[1753724037558,0.99769012,118030.0,118020.0,0.91794091]
[1753724037754,0.99769012,118030.0,118020.0,0.93979381]
[1753724038253,0.5490805,118020.0,118010.0,0.32337758]
[1753724038459,0.99770442,118020.0,118010.0,0.30056758]
[1753724038658,0.99770442,118020.0,118010.0,0.11146758]
[1753724038955,0.99770442,118020.0,117990.0,0.02281483]
[1753724038956,0.1141,118000.0,117990.0,0.02281483]
[1753724039156,1.43190433,118000.0,117990.0,0.21191]
[1753724039362,0.99783619,118000.0,117990.0,0.21191]
[1753724039755,0.99683619,118000.0,117990.0,0.21191]
[1753724040160,0.99683619,118000.0,117990.0,0.27823302]
[1753724040360,0.99683619,118000.0,117990.0,0.28123302]
[1753724040762,0.99683619,118000.0,117990.0,0.27823302]
[1753724040965,0.99883619,118000.0,117990.0,0.32069385]
[1753724041256,0.99983619,118000.0,117990.0,0.34212385]
[1753724041667,0.99983619,118000.0,117990.0,0.32069385]
[1753724042360,0.99983619,118000.0,117990.0,0.29888385]
[1753724042561,0.99983619,118000.0,117990.0,0.32169385]
[1753724042864,0.56576805,118000.0,117990.0,0.32169385]
[1753724043066,0.99983619,118000.0,117990.0,0.34312385]
[1753724044171,1.01876991,118000.0,117990.0,0.32169385]
[1753724044964,0.39965177,118000.0,117990.0,0.34312385]
[1753724045365,0.51178177,118000.0,117990.0,0.34312385]
[1753724045562,0.58470177,118000.0,117990.0,0.34312385]
[1753724045763,1.01876991,118000.0,117990.0,0.34312385]
[1753724046270,1.01876991,118000.0,117990.0,0.32169385]
[1753724046462,1.01576991,118000.0,117990.0,0.32369385]
[1753724047667,1.01576991,118000.0,117990.0,0.34512385]
[1753724049263,0.58170177,118000.0,117990.0,0.34512385]
[1753724049462,1.01576991,118000.0,117990.0,0.34512385]
[1753724050070,1.01576991,118000.0,117990.0,0.32369385]
[1753724052063,1.01576991,118000.0,117990.0,0.34512385]
[1753724052265,0.58170177,118000.0,117990.0,0.34512385]
[1753724052464,1.01576991,118000.0,117990.0,0.34512385]
[1753724053375,0.58170177,118000.0,117990.0,0.34512385]
[1753724056974,1.01576991,118000.0,117990.0,0.34512385]
[1753724058076,1.01576991,118000.0,117990.0,0.32369385]
[1753724060970,1.01576991,118000.0,117990.0,0.16349385]
[1753724062473,1.01676991,118000.0,117990.0,0.16349385]
[1753724063177,0.16190219,118010.0,118000.0,0.3995792]
[1753724063377,0.2174055,118010.0,118000.0,1.52216734]
[1753724064089,0.2174055,118010.0,118000.0,1.54372091]
[1753724064584,0.2174055,118010.0,118000.0,1.54572091]
[1753724065484,0.2174055,118010.0,118000.0,1.54672091]
[1753724066085,0.2174055,118010.0,118000.0,1.54572091]
[1753724066276,0.2174055,118010.0,118000.0,1.54672091]
[1753724066478,0.2174055,118010.0,118000.0,1.56953574]
[1753724066978,0.1035406,118020.0,118010.0,0.3274748]
[1753724067183,0.23280316,118020.0,118010.0,0.872318]
[1753724067389,0.18488316,118020.0,118010.0,0.872318]
[1753724067775,0.23280316,118020.0,118010.0,0.872318]
[1753724068179,0.23280316,118020.0,118010.0,0.89513283]
[1753724068877,0.23280316,118020.0,118010.0,0.872318]
[1753724069480,0.23280316,118020.0,118010.0,0.873318]
[1753724070386,0.23280316,118020.0,118010.0,1.136218]
[1753724072691,0.18488316,118020.0,118010.0,1.136218]
[1753724072893,0.18488316,118020.0,118010.0,1.30569]
[1753724073586,0.23280316,118020.0,118010.0,1.30569]
[1753724075385,0.2478015,118020.0,118010.0,1.30569]
[1753724076098,0.078341,118020.0,118010.0,1.30569]
[1753724077191,0.2478015,118020.0,118010.0,1.30569]
[1753724077391,0.078341,118020.0,118010.0,1.30569]
[1753724077891,0.2478015,118020.0,118010.0,1.30569]
[1753724078597,0.078341,118020.0,118010.0,1.30569]
[1753724078796,0.3061183,118030.0,118020.0,0.3995505]
[1753724078999,0.3061183,118030.0,118020.0,1.54317221]
[1753724079697,0.5863183,118030.0,118020.0,1.54317221]
[1753724081596,0.5863183,118030.0,118020.0,1.5430598]
[1753724081789,0.5863183,118030.0,118020.0,1.5440598]
[1753724083799,0.5873183,118030.0,118020.0,1.5440598]
[1753724085603,0.5863183,118030.0,118020.0,1.52261864]
[1753724085804,0.5863183,118030.0,118020.0,1.54406516]
[1753724086096,1.02038644,118030.0,118020.0,0.02244652]
[1753724086297,1.02038644,118030.0,118020.0,0.71028652]
[1753724086502,1.27038644,118030.0,118020.0,0.001]
[1753724087205,1.02038644,118030.0,118020.0,0.001]
[1753724087700,1.02038644,118030.0,118010.0,0.70493149]
[1753724087701,0.3170205,118020.0,118010.0,0.70493149]
[1753724087899,0.97803864,118020.0,118010.0,0.72638841]
[1753724088096,0.97803864,118020.0,118010.0,0.67638841]
[1753724088290,0.97803864,118020.0,118010.0,0.02145692]
[1753724088497,0.99729166,118020.0,118010.0,0.02145692]
[1753724088898,0.99729166,118020.0,118010.0,0.02445692]
[1753724090094,0.99729166,118020.0,118010.0,0.003]
[1753724090804,1.01223418,118020.0,118010.0,0.003]